fUSD/lending_fUSD_20250421
["ID","MTS","AMOUNT","RATE_DAILY","PERIOD"]
[358540256,1745241046955,-805.35048169,0.00046,7]
[358540259,1745241046970,-1026.87245864,0.00046,7]
[358540261,1745241046981,-1738.0,0.00046,7]
[358540263,1745241046992,-4937.72230243,0.00046,7]
[358540265,1745241047002,-350.0,0.00046,120]
[358540267,1745241047011,-97.12669765,0.00046,120]
[358540268,1745241047040,-402.87330235,0.00046,120]
[358540269,1745241047048,-397.52790635,0.00046,120]
[358540270,1745241047059,-102.47209365,0.00046,120]
[358540271,1745241047068,-500.0,0.00046,120]
[358540272,1745241047077,-466.92790434,0.00046,120]
[358540280,1745241063910,428.3,0.00032,60]
[358540282,1745241308047,-150.0,0.000372,120]
[358540283,1745241309764,-21.20058739,0.000372,120]
[358540284,1745241309789,-128.79941261,0.00045,90]
[358540285,1745241477720,-40.20058739,0.00045,90]
[358540286,1745241477743,-109.79941261,0.00045685,90]
[358540287,1745241479399,-59.20058739,0.00045685,90]
[358540288,1745241479427,-90.79941261,0.000459,68]
[358540289,1745241481979,-150.0,0.000459,68]
[358540290,1745241483142,-150.0,0.000459,68]
[358540291,1745241485535,-150.0,0.000459,68]
[358540292,1745241487119,-26.16646492,0.000459,68]
[358540293,1745241487142,-33.07209566,0.00046,120]
[358540294,1745241487164,-90.76143942,0.00046,120]
[358540295,1745241491841,-150.0,0.00046,120]
[358540297,1745241669782,-150.0,0.00044698,120]
[358540298,1745241671724,-63.38,0.00044698,120]
[358540299,1745241671749,-86.62,0.00044918,120]
[358540300,1745241819892,-2279.773392,0.00031839,2]
[358540301,1745241819939,-403.77260306,0.00031899,2]
[358540302,1745241819987,-403.77260306,0.000319,2]
[358540303,1745241820035,-403.77260306,0.000319,2]
[358540304,1745241908858,319968.90879882,0.0002,2]
[358540305,1745241908891,13958.21498942,0.0002,2]
[358540306,1745241908920,350000.0,0.0002,2]
[358540307,1745241911000,1621.15702867,0.000154,2]
[358540308,1745241926583,231.00278947,0.000108,2]
[358540309,1745241951701,-150.0,0.0004108,120]
[358540310,1745241953723,-68.01,0.0004108,120]
[358540311,1745241953747,-81.99,0.0004109,120]
[358540312,1745241957036,807.55697892,6.94e-05,2]
[358540313,1745241969212,1774.23286315,8e-05,2]
[358540314,1745241993293,1974.74925401,0.00015,2]
[358540315,1745242015421,-300.0,0.00019799,2]
[358540316,1745242015444,-72422.32466896,0.000198,2]
[358540317,1745242015467,-2708.60473508,0.000199,2]
[358540318,1745242015489,-160.77875642,0.000199,3]
[358540319,1745242015515,-182.83968115,0.00019999,2]
[358540320,1745242015538,-151.40122699,0.00019999,2]
[358540321,1745242015563,-635.6802097,0.00019999,2]
[358540322,1745242015587,-1593.95692005,0.0002,2]
[358540323,1745242015612,-2936041.04219548,0.0002,2]
[358540324,1745242023577,200.0,0.000192,7]
[358540325,1745242025592,500.0,0.000193,7]
[358540326,1745242027696,800.0,0.000194,7]
[358540327,1745242029793,236.23649853,0.000195,7]
[358540328,1745242029822,763.76350147,0.000195,7]
[358540329,1745242035288,1792.92181784,0.00015,2]
[358540330,1745242038999,-257.07528394,0.000196,7]
[358540331,1745242039038,10051.47920592,0.00015,2]
[358540332,1745242046034,250.8395806,0.000101,2]
[358540333,1745242049724,-172.93890717,0.000196,7]
[358540334,1745242052826,480.60932832,0.0001,2]
[358540335,1745242057985,-158.8228213,0.00019502,2]
[358540336,1745242063480,-68.51,0.0004109,120]
[358540337,1745242063506,-81.49,0.0004109,120]
[358540338,1745242069844,-148.66,0.0004109,120]
[358540339,1745242069871,-1.34,0.00044,120]
[358540340,1745242070749,-141.1771787,0.00019502,2]
[358540341,1745242070774,-93.38130904,0.000196,7]
[358540342,1745242071764,-150.0,0.00044,120]
[358540343,1745242073269,-30.91613406,0.00044,120]
[358540344,1745242073292,-119.08386594,0.000449,120]
[358540345,1745242074904,-150.0,0.00043934,120]
[358540346,1745242076277,-150.0,0.00043934,120]
[358540347,1745242078049,-150.0,0.00044833,120]
[358540348,1745242080677,-150.0,0.00044833,120]
[358540349,1745242081277,14268.56953148,0.0001,2]
[358540350,1745242085574,-234.558488,0.000196,7]
[358540351,1745242085861,450.0,0.00017,2]
[358540352,1745242086893,500.0,0.00019,2]
[358540353,1745242088630,-151.0,0.000196,7]
[358540354,1745242095743,-150.0,0.000196,7]
[358540355,1745242101173,-201.33696712,0.000196,7]
[358540356,1745242101845,200.0,0.0001634,2]
[358540357,1745242103473,194.65874869,0.000135,2]
[358540358,1745242113470,378.11320709,7.888e-05,2]
[358540359,1745242114137,-39.70904473,0.000196,7]
[358540360,1745242114162,-113.16949447,0.000197,7]
[358540361,1745242124642,-86.83050553,0.000197,7]
[358540362,1745242124673,-145.45166159,0.000198,7]
[358540363,1745242127574,499.999999,0.000151,2]
[358540364,1745242127780,258.99508731,0.000107,2]
[358540365,1745242127813,2193.11110922,0.0001421,7]
[358540366,1745242134855,-54.54833841,0.000198,7]
[358540367,1745242134880,-179.92409849,0.000199,7]
[358540368,1745242143214,-20.07590151,0.000199,7]
[358540369,1745242143237,-129.92409849,0.000199,2]
[358540370,1745242154527,-197.63407949,0.000199,3]
[358540371,1745242174415,-555.5143803,0.000199,2]
[358540372,1745242205091,-208.4348788,0.00019899,2]
[358540382,1745242232131,-91.5651212,0.00019899,2]
[358540383,1745242232142,-850.0,0.00019899,2]
[358540384,1745242232152,-6725.45386946,0.000199,2]
[358540385,1745242232161,-250.0,0.00019936,2]
[358540386,1745242232170,-503.53954002,0.00019973,2]
[358540387,1745242232180,-500.0,0.00019973,2]
[358540388,1745242232189,-500.0,0.00019973,2]
[358540389,1745242232199,-500.0,0.00019973,2]
[358540390,1745242232208,-500.0,0.00019973,2]
[358540391,1745242232218,-500.0,0.00019973,2]
[358540392,1745242232227,-250.0,0.00019974,2]
[358540393,1745242232236,-348.52,0.0001999,2]
[358540394,1745242232246,-348.52,0.0001999,2]
[358540395,1745242232255,-348.52,0.0001999,2]
[358540396,1745242232264,-348.52,0.0001999,2]
[358540397,1745242232274,-348.52,0.0001999,2]
[358540398,1745242232283,-348.52,0.0001999,2]
[358540399,1745242232292,-348.52,0.0001999,2]
[358540400,1745242232302,-348.52,0.0001999,2]
[358540401,1745242232311,-348.52,0.0001999,2]
[358540402,1745242232321,-348.52,0.0001999,2]
[358540403,1745242232330,-666.0,0.00019999,2]
[358540404,1745242232340,-220.97758887,0.00019999,2]
[358540405,1745242232351,-796.97846003,0.0002,2]
[358540406,1745242232360,-36276.28090984,0.0002,2]
[358540408,1745242232400,-2680.01690359,0.0002,2]
[358540455,1745242238198,-435.68171857,0.0002,2]
[358540456,1745242238364,-5687550.52109006,0.0002,2]
[358540660,1745242240505,-4466981.8538957,0.0002,2]
[358541034,1745242244100,-80322.25509213,0.0002,2]
[358541171,1745242246094,-1734.44,0.0002,2]
[358541172,1745242246537,-21799.7625,0.0002,2]
[358541178,1745242249183,-342.01445757,0.000199,2]
[358541179,1745242264319,-212.20954087,0.000199,2]
[358541180,1745242276756,-312.00418456,0.0001989,2]
[358541181,1745242384152,-289.90028563,0.00019889,2]
[358541182,1745242466313,-152.0,0.0001988,2]
[358541183,1745242483407,-247.33034386,0.0001988,2]
[358541184,1745242502707,-180.06997504,0.0001988,2]
[358541185,1745242508009,-170.4,0.0001988,2]
[358541186,1745242563653,-296.0742,0.0001988,2]
[358541187,1745242578450,184.14682,0.000199,23]
[358541188,1745242592055,175.19,0.00016586,2]
[358541189,1745242612692,-183.4229,0.0001978,2]
[358541190,1745242621256,183.08278,0.000199,23]
[358541191,1745242622947,-112.6513,0.0001978,2]
[358541192,1745242622970,-39.3487,0.0001988,2]
[358541193,1745242650077,-914.7767811,0.0001988,2]
[358541194,1745242650099,-300.0,0.00019889,2]
[358541195,1745242650122,-300.0,0.00019889,2]
[358541196,1745242650308,-300.0,0.00019889,2]
[358541197,1745242650330,-33318.55887139,0.0001989,2]
[358541198,1745242650352,-501.0,0.00019899,2]
[358541199,1745242650373,-635.6802097,0.00019899,2]
[358541200,1745242650396,-81024.09278951,0.000199,2]
[358541201,1745242650417,-1700.85711831,0.000199,2]
[358541202,1745242650439,-46682.3087361,0.000199,2]
[358541203,1745242650460,-381.09948104,0.000199,2]
[358541204,1745242650482,-1020.34411508,0.000199,2]
[358541205,1745242650503,-652.99290803,0.000199,2]
[358541206,1745242650524,-189.06066602,0.000199,2]
[358541207,1745242650545,-196.74764541,0.000199,2]
[358541208,1745242650566,-577.77795033,0.00019973,2]
[358541209,1745242650587,-500.0,0.00019973,2]
[358541210,1745242650608,-500.0,0.00019973,2]
[358541211,1745242650628,-184.96365317,0.00019973,2]
[358541212,1745242650649,-479.36777497,0.00019973,2]
[358541213,1745242650670,-501.99032317,0.00019973,2]
[358541214,1745242650690,-500.0,0.00019973,2]
[358541215,1745242650715,-500.0,0.00019973,2]
[358541216,1745242650737,-500.0,0.00019973,2]
[358541217,1745242650759,-627.09874732,0.00019973,2]
[358541218,1745242650782,-334.94894474,0.00019973,2]
[358541219,1745242650806,-182.83968115,0.00019999,2]
[358541220,1745242650827,-151.40122699,0.00019999,2]
[358541221,1745242650848,-398.48923001,0.0002,2]
[358541222,1745242650872,-522843.60314646,0.0002,2]
[358541223,1745242664042,184.14683937,0.0002,23]
[358541224,1745242686582,154.17,0.00025246,120]
[358541225,1745242686810,154.17,0.00028853,120]
[358541226,1745242692922,-156.21971437,0.000198,2]
[358541227,1745242702977,-179.20318563,0.000198,2]
[358541228,1745242703003,-25239.86648738,0.000199,2]
[358541229,1745242703027,-360.87485776,0.000199,2]
[358541230,1745242703050,-500.0,0.00019973,2]
[358541231,1745242703074,-300.0,0.00019999,2]
[358541232,1745242703099,-342420.05546923,0.0002,2]
[358541233,1745242706825,183.08277,0.0002,23]
[358541234,1745242710075,-312.28284521,0.000196,2]
[358541235,1745242716936,-239.59715479,0.000196,2]
[358541236,1745242754365,-2235.267,0.000196,2]
[358541237,1745242754387,-177.042,0.000196,2]
[358541238,1745242754408,-1971.56,0.00019705,2]
[358541239,1745242754440,-713.0,0.00019863,2]
[358541240,1745242754466,-300.0,0.00019899,2]
[358541241,1745242754489,-300.0,0.00019899,2]
[358541242,1745242754512,-2453.26807136,0.000199,2]
[358541243,1745242754534,-254.0663207,0.000199,2]
[358541244,1745242754557,-560.06875341,0.000199,2]
[358541245,1745242754579,-451.74618599,0.000199,2]
[358541246,1745242754604,-500.0,0.00019973,2]
[358541247,1745242754628,-171.90209729,0.00019973,2]
[358541248,1745242754651,-558.86538217,0.00019973,2]
[358541249,1745242754677,-81553.21418908,0.0002,2]
[358541250,1745242761176,572.88,0.000302,30]
[358541251,1745242795006,183.08278,0.0002,23]
[358541252,1745242837798,183.08279,0.0002,23]
[358541253,1745242851012,-250.0,0.00019899,2]
[358541254,1745242851036,-189.06066602,0.000199,2]
[358541255,1745242851060,-7988.60848257,0.000199,2]
[358541256,1745242851082,-425.65864699,0.000199,2]
[358541257,1745242851104,-240.58323852,0.000199,2]
[358541258,1745242851125,-16826.57765824,0.000199,2]
[358541259,1745242851149,-12805.34562313,0.000199,2]
[358541260,1745242851173,-250.0,0.0001995,2]
[358541261,1745242851198,-272158.16568453,0.0002,2]
[358541267,1745242880628,183.08278,0.0002,23]
[358541268,1745242881291,-169.37754712,0.000199,2]
[358541269,1745242881314,-1860.01915965,0.000199,2]
[358541270,1745242881336,-500.0,0.00019973,2]
[358541271,1745242881358,-500.0,0.00019973,2]
[358541272,1745242881383,-586721.60329323,0.0002,2]
[358541275,1745242908218,-193.53528402,0.000199,2]
[358541276,1745242908244,-709259.46471598,0.0002,2]
[358541278,1745242934119,-300.0,0.00019999,2]
[358541279,1745242934141,-300.0,0.00019999,2]
[358541280,1745242934166,-714821.0,0.0002,2]
[358541282,1745242962098,-160.38882568,0.000199,2]
[358541283,1745242962120,-11217.71843884,0.000199,2]
[358541284,1745242962144,-159621.89273548,0.0002,2]
[358541285,1745243006519,-722765.0,0.0002,2]
[358541286,1745243119081,1000.0,0.00032,60]
[358541287,1745243143603,-203.47432857,0.000198,2]
[358541288,1745243185932,183.08278,0.000223,28]
[358541289,1745243229197,1124.22438,0.000302,30]
[358541290,1745243255533,-157.5804,0.000198,2]
[358541291,1745243285324,-28.35482903,0.000198,2]
[358541292,1745243285347,-163.07993221,0.000198,2]
[358541293,1745243311061,-392.57703304,0.00019629,3]
[358541294,1745243326731,-411.750628,0.00019561,2]
[358541298,1745243349843,-281.611641,0.00019463,2]
[358541299,1745243364938,-130.138987,0.00019463,2]
[358541301,1745243364963,-37.896829,0.00019529,2]
[358541303,1745243393199,-272.43333876,0.00019495,2]
[358541304,1745243408012,-178.5515,0.00019495,2]
[358541305,1745243425910,-180.51226124,0.00019332,2]
[358541310,1745243432167,-19.48773876,0.00019332,2]
[358541311,1745243432176,-247.42496788,0.00019397,2]
[358541312,1745243432262,-653.20732712,0.00019397,2]
[358541313,1745243432271,-265.53516124,0.00019495,2]
[358541314,1745243432281,-1990.77968705,0.00019529,2]
[358541315,1745243432291,-300.0,0.0001956,2]
[358541316,1745243432300,-21524.389372,0.00019561,2]
[358541317,1745243432310,-107.42296696,0.00019629,3]
[358541318,1745243432320,-250.0,0.00019849,2]
[358541319,1745243432331,-300.0,0.00019899,2]
[358541320,1745243432340,-250.0,0.000199,2]
[358541321,1745243432349,-6120.56,0.000199,2]
[358541322,1745243432359,-9999.99,0.000199,2]
[358541323,1745243432368,-9999.99,0.000199,2]
[358541324,1745243432377,-66762.23975902,0.000199,2]
[358541325,1745243432386,-382.4543,0.000199,2]
[358541326,1745243432395,-1558.95501591,0.000199,2]
[358541327,1745243432405,-193.53528402,0.000199,2]
[358541328,1745243432414,-7478.47895922,0.000199,2]
[358541329,1745243432423,-3039.57,0.000199,2]
[358541330,1745243432432,-999.99,0.000199,2]
[358541331,1745243432442,-196.52,0.00019964,2]
[358541332,1745243432452,-7136.9,0.00019964,2]
[358541333,1745243432462,-499.99,0.00019964,2]
[358541334,1745243432471,-38105.55,0.00019964,2]
[358541335,1745243432480,-3563.82,0.00019964,2]
[358541336,1745243432490,-150.99,0.00019964,2]
[358541337,1745243432499,-9999.99,0.00019964,2]
[358541338,1745243432508,-150.0,0.00019973,2]
[358541339,1745243432517,-204.0,0.00019973,2]
[358541340,1745243432527,-550.66700527,0.00019973,2]
[358541341,1745243432537,-500.0,0.00019973,2]
[358541342,1745243432546,-157.0,0.00019973,2]
[358541343,1745243432555,-192.0,0.00019973,2]
[358541344,1745243432564,-256.97312706,0.00019973,2]
[358541345,1745243432573,-9999.99,0.00019973,2]
[358541346,1745243432583,-16013.9836442,0.00019986,2]
[358541347,1745243432592,-189.58,0.0001999,2]
[358541348,1745243432601,-371039.839934,0.00019998,2]
[358541349,1745243432611,-1022.5489785,0.00019999,2]
[358541350,1745243432619,-282002.49547923,0.0002,2]
[358541351,1745243432646,-173349.28225682,0.0002,2]
[358541352,1745243432664,-176178.32873086,0.0002,2]
[358541353,1745243432673,-51874.39653879,0.0002,2]
[358541461,1745243438363,-150.99,0.000199,2]
[358541463,1745243438373,-299.99,0.000199,7]
[358541465,1745243438382,-5688440.79306376,0.0002,2]
[358541468,1745243438394,-3911467.97469262,0.0002,2]
[358541470,1745243438403,-1250.13116265,0.0002,2]
[358541472,1745243438413,-11827.35795852,0.0002,2]
[358541486,1745243438565,-1755.01940257,0.0002,2]
[358541488,1745243438576,-571.41827435,0.0002,2]
[358541490,1745243438586,-66762.23975902,0.0002,2]
[358541492,1745243438595,-66762.23975902,0.0002,2]
[358541494,1745243438604,-2000.0,0.0002,4]
[358541496,1745243438614,-187.09,0.00020025,2]
[358541498,1745243438623,-200.0,0.00020081,2]
[358541500,1745243438632,-1671.72737047,0.0002015,2]
[358541502,1745243438641,-150.0,0.00020254,2]
[358541504,1745243438650,-1627.82,0.00020412,2]
[358541506,1745243438659,-2668.39,0.00020465,2]
[358541508,1745243438667,-13796.08,0.00020494,2]
[358541510,1745243438677,-23900.0,0.00020508,2]
[358541512,1745243438686,-1202.51,0.00020519,2]
[358541513,1745243438696,-5295.02,0.00020519,2]
[358541515,1745243438707,-3666.98,0.00020682,2]
[358541517,1745243438716,-532.14,0.00020713,2]
[358541519,1745243438726,-652.99290801,0.00020713,2]
[358541521,1745243438735,-7980.19,0.00020822,2]
[358541523,1745243438744,-176.08,0.00020845,2]
[358541525,1745243438753,-550.0,0.00021,2]
[358541527,1745243438763,-1153.27437178,0.00021,2]
[358541529,1745243438772,-190.34221327,0.00021,2]
[358541531,1745243438781,-79708.19,0.00021456,2]
[358541533,1745243438790,-200.0,0.00021456,2]
[358541535,1745243438799,-153.47,0.00021481,2]
[358541537,1745243438809,-2543.26,0.00021498,2]
[358541539,1745243438818,-3037.69,0.00021508,2]
[358541540,1745243438827,-652.99290801,0.00021527,2]
[358541542,1745243438837,-384.76,0.00021535,2]
[358541544,1745243438846,-8398.37,0.00021559,2]
[358541546,1745243438856,-345.8,0.00021608,2]
[358541548,1745243438865,-154.17,0.00021639,2]
[358541550,1745243438875,-1000.0,0.00021665,2]
[358541552,1745243438884,-13309.64,0.00021666,2]
[358541553,1745243438894,-12243.45,0.00021697,2]
[358541554,1745243438904,-2351.43,0.0002175,2]
[358541555,1745243438913,-420.0,0.00021774,2]
[358541556,1745243438923,-250.0,0.0002178,2]
[358541557,1745243438932,-250.0,0.0002178,2]
[358541558,1745243438942,-300.0,0.00021794,2]
[358541559,1745243438955,-438.6461,0.00021863,2]
[358541560,1745243438964,-150.0,0.0002189,2]
[358541561,1745243438973,-1200.57,0.00021899,2]
[358541562,1745243438983,-1971.56,0.00021969,2]
[358541563,1745243438993,-247.44767011,0.00022,2]
[358541564,1745243439003,-500.0,0.00022,2]
[358541565,1745243439012,-4994.31,0.00022,2]
[358541566,1745243439022,-231.89464304,0.0002211,2]
[358541568,1745243439033,-652.99290801,0.0002234,2]
[358541570,1745243439042,-67553.67208399,0.000225,2]
[358541572,1745243439052,-504.76444723,0.0002271,2]
[358541574,1745243439062,-154.22,0.00022951,2]
[358541576,1745243439071,-600.0,0.00023,2]
[358541578,1745243439081,-2000.0,0.00023,4]
[358541580,1745243439090,-150.0,0.00023127,7]
[358541583,1745243439100,-652.99290801,0.00023153,2]
[358541586,1745243439110,-587.0,0.00023826,2]
[358541588,1745243439120,-357.01,0.00023836,2]
[358541590,1745243439129,-652.99290801,0.00023967,2]
[358541592,1745243439138,-151.0,0.00024,2]
[358541594,1745243439148,-1200.0,0.00024,2]
[358541596,1745243439158,-315.63364825,0.0002402,2]
[358541598,1745243439167,-1971.56,0.00024233,2]
[358541600,1745243439177,-1000.0,0.00024373,2]
[358541602,1745243439187,-2475.85875355,0.00024444,2]
[358541604,1745243439196,-154.22,0.0002459,2]
[358541606,1745243439208,-1000.0,0.00024658,2]
[358541608,1745243439217,-257.42,0.00024658,4]
[358541610,1745243439227,-500.0,0.00024773,2]
[358541612,1745243439236,-500.0,0.00024773,2]
[358541613,1745243439246,-175.44011559,0.00024773,2]
[358541616,1745243439256,-160.53149574,0.00024773,2]
[358541617,1745243439266,-160.35080115,0.00024773,2]
[358541619,1745243439276,-500.0,0.00024773,2]
[358541622,1745243439286,-459.13962152,0.00024773,2]
[358541624,1745243439295,-500.0,0.00024773,2]
[358541625,1745243439304,-602.71137467,0.00024773,2]
[358541627,1745243439314,-652.99290801,0.0002478,2]
[358541630,1745243439323,-4994.31,0.000248,2]
[358541632,1745243439332,-93669.3471562,0.000248,2]
[358541634,1745243439342,-500.0,0.00024873,2]
[358541636,1745243439351,-507.88250915,0.00024873,2]
[358541637,1745243439360,-500.0,0.00024873,2]
[358541639,1745243439370,-511.12929153,0.00024873,2]
[358541641,1745243439379,-500.88139734,0.00024873,2]
[358541643,1745243439387,-504.98905447,0.00024873,2]
[358541645,1745243439397,-501.65762717,0.00024873,2]
[358541647,1745243439406,-161.97921838,0.00024873,2]
[358541649,1745243439415,-500.70307603,0.00024873,2]
[358541651,1745243439425,-502.62779402,0.00024873,2]
[358541653,1745243439435,-171.61267469,0.00024873,2]
[358541655,1745243439444,-500.0,0.00024873,2]
[358541657,1745243439453,-500.0,0.00024873,2]
[358541659,1745243439462,-500.0,0.00024873,2]
[358541661,1745243439471,-175.19,0.0002488,2]
[358541663,1745243439481,-517689.010332,0.000249,2]
[358541665,1745243439490,-7314.70919535,0.00024978,2]
[358541667,1745243439500,-1200.0,0.00025,3]
[358541669,1745243439509,-650.0,0.00025,2]
[358541671,1745243439518,-2934.24242766,0.00025,2]
[358541673,1745243439527,-3258.8387644,0.000251,2]
[358541675,1745243439537,-1000.0,0.00025452,2]
[358541676,1745243439546,-251.65607351,0.0002555,2]
[358541678,1745243439555,-1250.0,0.00026,4]
[358541680,1745243439565,-4433.65,0.00026,2]
[358541682,1745243439575,-3062.23686548,0.00026,2]
[358541684,1745243439584,-2000.0,0.00026,4]
[358541686,1745243439594,-823.0,0.00026071,2]
[358541688,1745243439603,-154.22,0.00026229,2]
[358541690,1745243439612,-1062.83875497,0.000264,2]
[358541692,1745243439621,-1971.56,0.00026497,2]
[358541694,1745243439631,-46128.87083703,0.000265,2]
[358541696,1745243439640,-700.0,0.00027,2]
[358541698,1745243439649,-1000.0,0.00027081,2]
[358541700,1745243439658,-3544.65,0.00027123,2]
[358541702,1745243439668,-171.1,0.00027397,2]
[358541704,1745243439677,-6526.3,0.00027397,2]
[358541706,1745243439687,-151.81,0.00027397,2]
[358541708,1745243439696,-1729.63,0.00027397,15]
[358541710,1745243439705,-946.78563424,0.000274,2]
[358541712,1745243439715,-154.22,0.00027869,2]
[358541714,1745243439724,-23968.64851057,0.00028,2]
[358541716,1745243439733,-479.37297021,0.00028,2]
[358541718,1745243439743,-4994.31,0.00028,2]
[358541720,1745243439752,-1152.0,0.00028528,2]
[358541721,1745243439761,-5295.02,0.00028726,2]
[358541723,1745243439771,-1971.56,0.00028761,2]
[358541725,1745243439780,-6526.3,0.00028767,2]
[358541727,1745243439789,-54818.78608386,0.00029,2]
[358541729,1745243439799,-2000.0,0.00029,4]
[358541731,1745243439808,-154.22,0.00029508,2]
[358541733,1745243439818,-828.53769175,0.0002971,2]
[358541735,1745243439827,-1000.0,0.00029789,2]
[358541737,1745243439836,-75710.26368835,0.000299,2]
[358541739,1745243439845,-6220.63472606,0.000299,2]
[358541741,1745243439854,-13662.43722234,0.0002991,2]
[358541743,1745243439864,-204.57518545,0.00029973,5]
[358541745,1745243439873,-150.0,0.00029973,5]
[358541747,1745243439882,-20674.65097254,0.0003,20]
[358541770,1745243440080,-30.1494137,0.0003,20]
[358541775,1745243440123,-75.21347849,0.0003,20]
[358541816,1745243440510,-474.86916523,0.0003,20]
[358541818,1745243440521,-921.80102485,0.0003,20]
[358541901,1745243441422,-754.50963579,0.0003,20]
[358541904,1745243441437,-415.09850001,0.0003,20]
[358541908,1745243441463,-37641.94382504,0.0003,20]
[358541910,1745243441472,-206236.36454894,0.0003,2]
[358541912,1745243441481,-378.33110625,0.0003,2]
[358541914,1745243441491,-213.0,0.0003,2]
[358541916,1745243441500,-828.53769175,0.00030028,2]
[358541918,1745243441509,-187.09,0.00030038,2]
[358541920,1745243441518,-6526.3,0.00030137,2]
[358541922,1745243441527,-828.53769175,0.00030165,2]
[358541924,1745243441536,-1012.83086307,0.00030252,5]
[358541926,1745243441545,-1000.0,0.00030252,5]
[358541927,1745243441554,-500.0,0.00030252,5]
[358541929,1745243441563,-1000.0,0.00030352,5]
[358541931,1745243441572,-1022.89227506,0.00030352,5]
[358541933,1745243441581,-504.75280513,0.00030352,5]
[358541935,1745243441591,-1006.92117102,0.00030352,5]
[358541937,1745243441600,-185.09904127,0.00030352,5]
[358541938,1745243441609,-353.11048736,0.00030521,5]
[358541939,1745243441619,-828.53769175,0.00030645,2]
[358541940,1745243441628,-828.53769175,0.0003074,2]
[358541941,1745243441637,-151.81,0.00030822,2]
[358541942,1745243441647,-1971.56,0.00031025,2]
[358541943,1745243441656,-828.53769175,0.00031145,2]
[358541944,1745243441666,-154.22,0.00031147,2]
[358541945,1745243441675,-1613.0,0.00031217,3]
[358541946,1745243441684,-14698.44,0.00031426,2]
[358541947,1745243441694,-21017.33,0.00031426,2]
[358541949,1745243441705,-828.53769175,0.00031491,2]
[358541951,1745243441715,-6526.3,0.00031507,2]
[358541953,1745243441724,-828.53769175,0.00031774,2]
[358541955,1745243441733,-171.1,0.00031781,2]
[358541957,1745243441742,-4994.31,0.00032,2]
[358541959,1745243441751,-2000.0,0.00032,4]
[358541961,1745243441761,-200.0,0.00032,2]
[358541963,1745243441770,-828.53769175,0.00032058,2]
[358541965,1745243441779,-200.0,0.0003232,2]
[358541967,1745243441789,-154.17,0.00032459,120]
[358541969,1745243441799,-1000.0,0.00032497,2]
[358541971,1745243441808,-200.0,0.00032643,2]
[358541973,1745243441817,-154.22,0.00032787,2]
[358541975,1745243441827,-4650.90721729,0.000328,2]
[358541977,1745243441836,-203.47432857,0.00032875,2]
[358541979,1745243441845,-952.77,0.00032877,120]
[358541981,1745243441854,-6526.3,0.00032877,2]
[358541983,1745243441864,-275.18,0.00032904,30]
[358541985,1745243441873,-200.0,0.0003297,2]
[358541987,1745243441882,-4554.78413157,0.00033,2]
[358541989,1745243441891,-25113.40752803,0.00033,2]
[358541991,1745243441900,-7478.47895921,0.00033188,2]
[358541993,1745243441909,-1971.56,0.00033288,2]
[358541995,1745243441919,-200.0,0.00033299,2]
[358541997,1745243441928,-500.0,0.00033534,2]
[358541999,1745243441938,-4001.11593141,0.00034,2]
[358542001,1745243441950,-2258.0,0.00034158,3]
[358542003,1745243441959,-151.81,0.00034247,2]
[358542005,1745243441968,-154.22,0.00034426,2]
[358542007,1745243441976,-150.0,0.00034548,10]